fUSD/lending_fUSD_20241116
["ID","MTS","AMOUNT","RATE_DAILY","PERIOD"]
[342332680,1731737439946,-150.0,9.815e-05,2]
[342332681,1731737439955,-150.0,9.828e-05,2]
[342332682,1731737439964,-150.0,9.828e-05,2]
[342332683,1731737439973,-150.0,9.833e-05,2]
[342332684,1731737439982,-420.0,9.833e-05,2]
[342332685,1731737439991,-150.0,9.835e-05,2]
[342332686,1731737440000,-150.0,9.835e-05,2]
[342332687,1731737440010,-150.0,9.838e-05,2]
[342332688,1731737440019,-150.0,9.839e-05,2]
[342332689,1731737440029,-150.0,9.841e-05,2]
[342332690,1731737440038,-150.0,9.848e-05,2]
[342332691,1731737440047,-150.0,9.85e-05,2]
[342332692,1731737440056,-150.0,9.854e-05,2]
[342332693,1731737440066,-150.0,9.855e-05,2]
[342332694,1731737440076,-150.0,9.855e-05,2]
[342332695,1731737440086,-150.0,9.859e-05,2]
[342332696,1731737440095,-150.0,9.862e-05,2]
[342332698,1731737440105,-150.0,9.869e-05,2]
[342332699,1731737440115,-150.0,9.871e-05,2]
[342332700,1731737440129,-176.149,9.874e-05,2]
[342332701,1731737440138,-150.0,9.874e-05,2]
[342332702,1731737440148,-150.0,9.876e-05,2]
[342332703,1731737440157,-999.999999,9.888e-05,2]
[342332704,1731737440167,-150.0,9.888e-05,2]
[342332705,1731737440176,-150.0,9.892e-05,2]
[342332706,1731737440186,-150.0,9.892e-05,2]
[342332707,1731737440195,-150.0,9.893e-05,2]
[342332708,1731737440205,-500.0,9.899e-05,2]
[342332709,1731737440214,-1104.37126143,9.9e-05,2]
[342332710,1731737440223,-1104.37126143,9.9e-05,2]
[342332711,1731737440232,-22141.48359092,9.9e-05,2]
[342332712,1731737440242,-1112.89356595,9.9e-05,2]
[342332713,1731737440250,-150.0,9.902e-05,2]
[342332714,1731737440259,-150.0,9.904e-05,2]
[342332715,1731737440269,-150.0,9.907e-05,2]
[342332716,1731737440278,-150.0,9.914e-05,2]
[342332717,1731737440287,-150.0,9.923e-05,2]
[342332718,1731737440297,-150.0,9.926e-05,2]
[342332719,1731737440311,-150.0,9.935e-05,2]
[342332720,1731737440321,-150.0,9.938e-05,2]
[342332721,1731737440330,-150.0,9.94e-05,2]
[342332722,1731737440341,-150.0,9.94e-05,2]
[342332723,1731737440351,-150.0,9.942e-05,2]
[342332724,1731737440361,-150.0,9.942e-05,2]
[342332725,1731737440374,-150.0,9.951e-05,2]
[342332726,1731737440384,-150.0,9.953e-05,2]
[342332727,1731737440393,-426.52704095,9.957e-05,2]
[342332728,1731737440403,-225.16305762,9.973e-05,2]
[342332729,1731737440412,-500.58157321,9.973e-05,2]
[342332730,1731737440422,-500.56479695,9.973e-05,2]
[342332731,1731737440431,-150.0,9.976e-05,2]
[342332732,1731737440441,-241.196,9.98e-05,2]
[342332733,1731737440450,-150.0,9.98e-05,2]
[342332734,1731737440460,-298.4,9.98e-05,2]
[342332735,1731737440469,-150.0,9.98e-05,2]
[342332736,1731737440482,-975.074,9.98e-05,2]
[342332737,1731737440491,-628.0,9.98e-05,2]
[342332738,1731737440501,-1992.0,9.98e-05,2]
[342332739,1731737440510,-1932.575,9.98e-05,2]
[342332740,1731737440520,-238.445,9.98e-05,2]
[342332741,1731737440530,-816.0,9.98e-05,2]
[342332742,1731737440540,-3752.829,9.98e-05,2]
[342332743,1731737440550,-1263.509,9.98e-05,2]
[342332744,1731737440559,-915.119,9.98e-05,2]
[342332745,1731737440569,-3505.788,9.98e-05,2]
[342332746,1731737440580,-150.0,9.988e-05,2]
[342332747,1731737440590,-150.0,9.991e-05,2]
[342332748,1731737440604,-31551.0,9.996e-05,2]
[342332750,1731737440614,-500.0,9.999e-05,2]
[342332752,1731737440628,-500.0,9.999e-05,2]
[342332754,1731737440640,-368.93032263,9.999e-05,2]
[342332756,1731737440650,-500.0,9.999e-05,2]
[342332758,1731737440661,-500.0,9.999e-05,2]
[342332760,1731737440671,-500.0,9.999e-05,2]
[342332762,1731737440682,-500.0,9.999e-05,2]
[342332764,1731737440692,-500.0,9.999e-05,2]
[342332767,1731737440703,-500.0,9.999e-05,2]
[342332769,1731737440713,-520.9039565,9.999e-05,2]
[342332771,1731737440724,-238.80196983,9.999e-05,2]
[342332772,1731737440734,-500.0,9.999e-05,2]
[342332775,1731737440744,-500.0,9.999e-05,2]
[342332777,1731737440754,-235.95,9.999e-05,2]
[342332779,1731737440764,-500.0,9.999e-05,2]
[342332781,1731737440773,-500.0,9.999e-05,2]
[342332783,1731737440783,-500.0,9.999e-05,2]
[342332784,1731737440792,-500.0,9.999e-05,2]
[342332785,1731737440802,-500.0,9.999e-05,2]
[342332786,1731737440811,-500.0,9.999e-05,2]
[342332787,1731737440820,-500.0,9.999e-05,2]
[342332788,1731737440829,-500.0,9.999e-05,2]
[342332789,1731737440838,-500.0,9.999e-05,2]
[342332790,1731737440848,-379.15554642,9.999e-05,2]
[342332791,1731737440857,-500.0,9.999e-05,2]
[342332792,1731737440866,-500.0,9.999e-05,2]
[342332793,1731737440880,-513.3,9.999e-05,2]
[342332794,1731737440889,-500.0,9.999e-05,2]
[342332795,1731737440899,-620.6,9.999e-05,2]
[342332796,1731737440909,-500.0,9.999e-05,2]
[342332797,1731737440923,-504.17598377,9.999e-05,2]
[342332798,1731737440933,-500.0,9.999e-05,2]
[342332799,1731737440943,-500.0,9.999e-05,2]
[342332800,1731737440952,-500.0,9.999e-05,2]
[342332801,1731737440962,-453.34975168,9.999e-05,2]
[342332802,1731737440973,-500.0,9.999e-05,2]
[342332803,1731737440983,-500.0,9.999e-05,2]
[342332804,1731737440992,-500.0,9.999e-05,2]
[342332805,1731737441002,-500.0,9.999e-05,2]
[342332806,1731737441012,-500.0,9.999e-05,2]
[342332807,1731737441022,-500.0,9.999e-05,2]
[342332808,1731737441031,-500.0,9.999e-05,2]
[342332809,1731737441041,-500.0,9.999e-05,2]
[342332810,1731737441051,-500.0,9.999e-05,2]
[342332811,1731737441060,-270.96142895,9.999e-05,2]
[342332812,1731737441070,-486.81900057,9.999e-05,2]
[342332813,1731737441079,-3489.0,0.0001,2]
[342332814,1731737441089,-2497341.02856833,0.0001,2]
[342332815,1731737441392,-1532.55403762,0.0001,2]
[342332816,1731737441404,-7467.04804108,0.0001,2]
[342332817,1731737441415,-16032.38273914,0.0001,2]
[342332818,1731737441426,-8063.61724454,0.0001,2]
[342332819,1731737441437,-1625.81543385,0.0001,2]
[342332820,1731737441448,-4677.75738931,0.0001,2]
[342332821,1731737441459,-1000.12870326,0.0001,2]
[342332822,1731737441470,-1090.76618794,0.0001,2]
[342332823,1731737441482,-4010.37000112,0.0001,2]
[342332824,1731737441594,-519.14717886,0.0001,2]
[342332825,1731737441609,-483.80163546,0.0001,2]
[342332826,1731737441639,-1590.65548125,0.0001,2]
[342332827,1731737441650,-997.14931612,0.0001,2]
[342332838,1731737443198,-708.69588754,0.0001,2]
[342332839,1731737443226,-3095.36681398,0.0001,2]
[342332840,1731737443252,-723.82538793,0.0001,2]
[342332841,1731737443264,-2016.6,0.0001,2]
[342332842,1731737443276,-2467.1499995,0.0001,2]
[342332843,1731737443288,-7440.45079688,0.0001,2]
[342332844,1731737443304,-1559.5626137,0.0001,2]
[342332845,1731737443315,-2084.92249429,0.0001,2]
[342332846,1731737443326,-2120.88332862,0.0001,2]
[342332847,1731737443338,-29766.63499894,0.0001,2]
[342332848,1731737443349,-5953.6622227,0.0001,2]
[342332849,1731737443360,-1431.1848297,0.0001,2]
[342332850,1731737443372,-1663.8130781,0.0001,2]
[342332851,1731737443487,-666.69174486,0.0001,2]
[342332852,1731737443500,-1000.0,0.0001,2]
[342332853,1731737443596,-7764.0017081,0.0001,2]
[342332854,1731737443607,-529.685291,0.0001,2]
[342332855,1731737443618,-426.29565446,0.0001,2]
[342332856,1731737443647,-373.5132,0.0001,2]
[342332857,1731737443659,-3197.54513101,0.0001,2]
[342332866,1731737446193,-3146.0,0.0001,2]
[342332867,1731737446203,-1525.58803117,0.0001,2]
[342332868,1731737446214,-4904.65001137,0.0001,2]
[342332869,1731737446226,-10714.47,0.0001,2]
[342332870,1731737446242,-37701.09588244,0.0001,2]
[342332871,1731737446428,-1139.1771887,0.0001,2]
[342332872,1731737446543,-7219.91762309,0.0001,2]
[342332875,1731737596331,500.0,0.0002488,120]
[342332876,1731737605422,2000.0,0.00024999,120]
[342332877,1731737631546,200.0,0.00024999,120]
[342332878,1731737812199,-500.0,0.00025506,120]
[342332879,1731737812703,-1500.0,0.00025506,120]
[342332880,1731737812727,-500.0,0.00025749,120]
[342332881,1731737813398,-200.0,0.00025999,120]
[342332882,1731737813419,-300.0,0.00026013,120]
[342332883,1731737813663,-1700.0,0.00026013,120]
[342332884,1731737813925,-200.0,0.00026499,120]
[342332885,1731737837052,150.0,5.329e-05,2]
[342332886,1731737837075,49.0,5.329e-05,2]
[342332887,1731737897172,101.0,5.329e-05,2]
[342332888,1731737897193,96.0,5.329e-05,2]
[342332889,1731737917777,54.0,8.219e-05,2]
[342332890,1731737917800,150.0,8.219e-05,2]
[342332891,1731737917823,280.20781977,8.219e-05,2]
[342332892,1731737917846,150.0,8.219e-05,2]
[342332893,1731737917867,215.97,8.219e-05,2]
[342332894,1731737918161,604.62218023,8.219e-05,2]
[342332895,1731737974731,2118.99263856,0.00025,60]
[342332896,1731738195194,300.0,0.00025443,120]
[342332897,1731738195216,200.0,0.00025443,120]
[342332898,1731738208353,2000.0,0.0002469,120]
[342332899,1731738228399,-200.0,8.792e-05,2]
[342332900,1731738262875,-250.0,8.767e-05,2]
[342332901,1731738271875,-150.0,8.763e-05,2]
[342332902,1731738295778,500.0,8.501e-05,2]
[342332903,1731738417134,-200.0,8.687e-05,2]
[342332904,1731738417155,-40.4427187,8.716e-05,2]
[342332905,1731738453103,-151.67768542,8.673e-05,2]
[342332918,1731738553418,-2877.95,8.608e-05,2]
[342332919,1731738553441,-98.32231458,8.673e-05,2]
[342332920,1731738553463,-959.5572813,8.716e-05,2]
[342332921,1731738553484,-250.0,8.743e-05,2]
[342332922,1731738553504,-1702.42,8.763e-05,2]
[342332923,1731738553523,-165.68,8.819e-05,2]
[342332924,1731738553543,-2996.26,8.829e-05,2]
[342332925,1731738553563,-500.0,8.866e-05,2]
[342332926,1731738553584,-3338.438,8.889e-05,2]
[342332927,1731738553609,-1000.0,8.889e-05,2]
[342332928,1731738553629,-2500.0,8.889e-05,2]
[342332929,1731738553650,-162.3,8.903e-05,2]
[342332930,1731738553679,-23900.0,8.918e-05,2]
[342332931,1731738553699,-1526.3,8.951e-05,2]
[342332932,1731738553720,-182717.52608817,8.989e-05,2]
[342332933,1731738556330,-1511.39,8.853e-05,2]
[342332934,1731738556354,-120418.2598,8.989e-05,2]
[342332935,1731738566111,-27008.27276,8.989e-05,2]
[342332936,1731738566140,-136794.33405183,8.989e-05,2]
[342332955,1731738631684,-1020.3867297,9e-05,14]
[342332956,1731738631695,-150.0,9e-05,2]
[342332957,1731738631705,-1526.3,9.041e-05,2]
[342332958,1731738631714,-703.21,9.191e-05,2]
[342332959,1731738631723,-447.71,9.208e-05,2]
[342332962,1731738631947,-567.7,9.276e-05,2]
[342332963,1731738631959,-300.0,9.588e-05,2]
[342332964,1731738631968,-500.0,9.589e-05,2]
[342332965,1731738631979,-238.80196983,9.589e-05,2]
[342332966,1731738631988,-500.0,9.589e-05,2]
[342332967,1731738631997,-500.0,9.589e-05,2]
[342332968,1731738632008,-500.0,9.589e-05,2]
[342332969,1731738632018,-500.0,9.589e-05,2]
[342332970,1731738632027,-500.0,9.589e-05,2]
[342332971,1731738632036,-500.0,9.589e-05,2]
[342332972,1731738632045,-500.0,9.589e-05,2]
[342332973,1731738632054,-500.0,9.589e-05,2]
[342332974,1731738632063,-486.81900057,9.589e-05,2]
[342332975,1731738632072,-500.0,9.589e-05,2]
[342332976,1731738632081,-500.0,9.589e-05,2]
[342332977,1731738632090,-176.30996019,9.589e-05,2]
[342332978,1731738632099,-500.0,9.589e-05,2]
[342332979,1731738632108,-500.0,9.589e-05,2]
[342332980,1731738632116,-392.06505301,9.589e-05,2]
[342332981,1731738632125,-500.0,9.589e-05,2]
[342332982,1731738632134,-500.0,9.589e-05,2]
[342332983,1731738632143,-500.0,9.589e-05,2]
[342332984,1731738632152,-544.41529734,9.589e-05,2]
[342332985,1731738632162,-500.0,9.589e-05,2]
[342332986,1731738632171,-500.0,9.589e-05,2]
[342332987,1731738632180,-500.0,9.589e-05,2]
[342332988,1731738632190,-500.0,9.589e-05,2]
[342332989,1731738632199,-643.66,9.589e-05,2]
[342332990,1731738632208,-500.0,9.589e-05,2]
[342332991,1731738632218,-553.12319067,9.589e-05,2]
[342332992,1731738632226,-500.0,9.589e-05,2]
[342332993,1731738632235,-500.0,9.589e-05,2]
[342332994,1731738632244,-500.0,9.589e-05,2]
[342332995,1731738632253,-500.0,9.589e-05,2]
[342332996,1731738632262,-913.88,9.589e-05,2]
[342332997,1731738632271,-913.88,9.589e-05,2]
[342332998,1731738632281,-500.0,9.625e-05,2]
[342332999,1731738632290,-500.0,9.625e-05,2]
[342333000,1731738632299,-500.0,9.625e-05,2]
[342333001,1731738632309,-278.79,9.625e-05,2]
[342333002,1731738632318,-500.0,9.625e-05,2]
[342333003,1731738632327,-1000.0,9.806e-05,2]
[342333004,1731738632336,-150.0,9.813e-05,2]
[342333005,1731738632346,-150.0,9.837e-05,2]
[342333006,1731738632355,-150.0,9.839e-05,2]
[342333007,1731738632365,-150.0,9.85e-05,2]
[342333008,1731738632374,-150.0,9.859e-05,2]
[342333009,1731738632383,-150.0,9.877e-05,2]
[342333010,1731738632393,-150.0,9.89e-05,2]
[342333011,1731738632402,-500.0,9.899e-05,2]
[342333012,1731738632412,-500.0,9.899e-05,2]
[342333013,1731738632421,-500.0,9.899e-05,2]
[342333014,1731738632431,-500.0,9.899e-05,2]
[342333015,1731738632439,-504.17598377,9.899e-05,2]
[342333016,1731738632448,-500.0,9.899e-05,2]
[342333017,1731738632457,-500.0,9.899e-05,2]
[342333018,1731738632466,-620.6,9.899e-05,2]
[342333019,1731738632475,-500.0,9.899e-05,2]
[342333020,1731738632485,-32278.44126408,9.9e-05,2]
[342333021,1731738632497,-67721.55873592,9.9e-05,2]
[342333022,1731738632506,-1000.0,9.9e-05,2]
[342333023,1731738632515,-740.12,9.9e-05,2]
[342333024,1731738632525,-150.0,9.904e-05,2]
[342333025,1731738632534,-2210.40295178,9.91e-05,2]
[342333026,1731738632542,-631.0,9.98e-05,2]
[342333027,1731738632551,-150.0,9.98e-05,2]
[342333028,1731738632560,-150.0,9.989e-05,2]
[342333029,1731738632569,-20996.91831123,9.995e-05,2]
[342333030,1731738632666,-2600.29888,9.995e-05,2]
[342333031,1731738632683,-7953.78280877,9.995e-05,2]
[342333032,1731738632693,-500.0,9.999e-05,2]
[342333033,1731738632702,-500.0,9.999e-05,2]
[342333034,1731738632711,-500.0,9.999e-05,2]
[342333035,1731738632720,-500.0,9.999e-05,2]
[342333036,1731738632730,-500.0,9.999e-05,2]
[342333037,1731738632739,-164.51712776,9.999e-05,2]
[342333038,1731738632748,-235.95,9.999e-05,2]
[342333039,1731738632757,-513.3,9.999e-05,2]
[342333040,1731738632766,-500.0,9.999e-05,2]
[342333041,1731738632775,-453.34975168,9.999e-05,2]
[342333042,1731738632784,-500.0,9.999e-05,2]
[342333043,1731738632795,-500.0,9.999e-05,2]
[342333044,1731738632803,-500.0,9.999e-05,2]
[342333045,1731738632812,-228.14172681,9.999e-05,2]
[342333046,1731738632822,-368.93032263,9.999e-05,2]
[342333047,1731738632831,-500.0,9.999e-05,2]
[342333048,1731738632840,-500.0,9.999e-05,2]
[342333049,1731738632849,-619.12398774,9.999e-05,2]
[342333050,1731738632858,-500.0,9.999e-05,2]
[342333051,1731738632867,-500.0,9.999e-05,2]
[342333052,1731738632876,-500.0,9.999e-05,2]
[342333053,1731738632885,-500.0,9.999e-05,2]
[342333054,1731738632894,-520.9039565,9.999e-05,2]
[342333055,1731738632903,-500.0,9.999e-05,2]
[342333056,1731738632914,-500.0,9.999e-05,2]
[342333057,1731738632924,-626.77003981,9.999e-05,2]
[342333058,1731738632934,-500.0,9.999e-05,2]
[342333059,1731738632948,-500.0,9.999e-05,2]
[342333060,1731738632957,-379.15554642,9.999e-05,2]
[342333061,1731738632966,-261.11835669,9.999e-05,2]
[342333062,1731738632975,-500.0,9.999e-05,2]
[342333063,1731738632986,-500.0,9.999e-05,2]
[342333064,1731738632997,-500.0,9.999e-05,2]
[342333065,1731738633007,-500.0,9.999e-05,2]
[342333066,1731738633019,-500.0,9.999e-05,2]
[342333067,1731738633028,-500.0,9.999e-05,2]
[342333068,1731738633037,-500.0,9.999e-05,2]
[342333069,1731738633047,-270.96142895,9.999e-05,2]
[342333070,1731738633055,-409.48051149,9.999e-05,2]
[342333071,1731738633065,-913.88,9.999e-05,2]
[342333072,1731738633074,-913.88,9.999e-05,2]
[342333073,1731738633083,-913.88,9.999e-05,2]
[342333074,1731738633093,-913.88,9.999e-05,2]
[342333075,1731738633102,-499.5187494,9.999e-05,2]
[342333082,1731738637362,-505.81526502,9.589e-05,2]
[342333083,1731738637371,-414.3612506,9.999e-05,2]
[342333084,1731738637381,-913.88,9.999e-05,2]
[342333085,1731738637390,-913.88,9.999e-05,2]
[342333086,1731738637399,-913.88,9.999e-05,2]
[342333087,1731738637408,-913.88,9.999e-05,2]
[342333088,1731738637427,-913.88,9.999e-05,2]
[342333089,1731738637436,-913.88,9.999e-05,2]
[342333090,1731738637445,-913.88,9.999e-05,2]
[342333091,1731738637454,-913.88,9.999e-05,2]
[342333092,1731738637463,-913.88,9.999e-05,2]
[342333093,1731738637472,-913.88,9.999e-05,2]
[342333094,1731738637482,-913.88,9.999e-05,2]
[342333095,1731738637491,-913.88,9.999e-05,2]
[342333096,1731738637500,-854.54417433,9.999e-05,2]
[342333097,1731738637511,-59.33582567,9.999e-05,2]
[342333098,1731738637520,-913.88,9.999e-05,2]
[342333099,1731738637529,-913.88,9.999e-05,2]
[342333100,1731738637538,-913.88,9.999e-05,2]
[342333101,1731738637547,-914.05829007,9.999e-05,2]
[342333102,1731738637557,-3278.0,0.0001,2]
[342333103,1731738637566,-2600.55969385,0.0001,2]
[342333104,1731738637578,-1202.18287313,0.0001,2]
[342333105,1731738637587,-124.53964495,0.0001,2]
[342333106,1731738637597,-10005.6044,0.0001,2]
[342333107,1731738637608,-4982.1451099,0.0001,2]
[342333108,1731738637726,-13026.06280513,0.0001,2]
[342333109,1731738637737,-28444.19737002,0.0001,2]
[342333110,1731738637748,-500.0,0.0001,2]
[342333111,1731738637776,-2295.0,0.0001,2]
[342333112,1731738637787,-521.74533198,0.0001,2]
[342333118,1731738639364,-606.199999,0.0001,2]
[342333119,1731738639474,-31260.4299667,0.0001,2]
[342333120,1731738639581,-7993.313628,0.0001,2]
[342333121,1731738639672,-556.34888815,0.0001,2]
[342333147,1731738642609,-5009.75388417,0.0001,2]
[342333148,1731738642620,-3882.06113276,0.0001,2]
[342333149,1731738642631,-3719.46457848,0.0001,2]
[342333150,1731738642652,-1064.19714854,0.0001,2]
[342333151,1731738642663,-1110.72829078,0.0001,2]
[342333152,1731738642678,-2662.64307122,0.0001,2]
[342333153,1731738642732,-1958.25491852,0.0001,2]
[342333154,1731738642823,-74416.68383165,0.0001,2]
[342333155,1731738642833,-103563.56627982,0.0001,2]
[342333156,1731738642844,-1417.31362859,0.0001,2]
[342333157,1731738642892,-26.71585758,0.0001,2]
[342333202,1731738645588,-106.95485862,0.0001,2]
[342333203,1731738645679,-443.23511946,0.0001,2]
[342333204,1731738645691,-700.97839281,0.0001,2]
[342333205,1731738645702,-1703.83162911,0.0001,2]
[342333206,1731738645711,-4379.43629504,0.0001,2]
[342333207,1731738645722,-1683.42352676,0.0001,2]
[342333208,1731738645734,-25100.36299234,0.0001,2]
[342333209,1731738645744,-20384.1602,0.0001,2]
[342333210,1731738645756,-1138.21199712,0.0001,2]
[342333211,1731738645767,-11127.84921093,0.0001,2]
[342333213,1731738660429,267.725,8.889e-05,2]
[342333214,1731738705007,382.0,0.00025,60]
[342333216,1731738812054,2000.0,0.00024932,60]
[342333217,1731738817352,2000.0,0.00024932,60]
[342333218,1731738865238,150.0,8.219e-05,2]
[342333219,1731738865260,150.0,8.219e-05,2]
[342333220,1731738865281,150.0,8.219e-05,2]
[342333221,1731738865305,150.0,8.219e-05,2]
[342333222,1731738865331,812.06,8.219e-05,2]
[342333223,1731739395588,500.0,0.00024886,120]
[342333224,1731739403441,2000.0,0.00024886,120]
[342333225,1731739424117,200.0,0.00024886,120]
[342333226,1731739483207,1000.0,0.00025,60]
[342333229,1731739500374,1000.0,0.00025,60]
[342333230,1731739505839,2000.0,0.00025,60]
[342333231,1731739633785,112571.4592441,8.5e-05,2]
[342333232,1731739637137,-165.68,9.122e-05,2]
[342333233,1731739637160,-630.21,9.128e-05,2]
[342333234,1731739637181,-223.85,9.189e-05,2]
[342333235,1731739637204,-250.0,9.209e-05,2]
[342333236,1731739637226,-200.0,9.258e-05,2]
[342333237,1731739637249,-200.0,9.36e-05,2]
[342333238,1731739637275,-150.0,9.404e-05,2]
[342333239,1731739637298,-250.0,9.446e-05,2]
[342333240,1731739637326,-1000.0,9.49e-05,2]
[342333241,1731739637349,-250.0,9.571e-05,2]
[342333242,1731739637372,-300.0,9.588e-05,2]
[342333243,1731739637394,-500.0,9.589e-05,2]
[342333244,1731739637416,-500.0,9.589e-05,2]
[342333245,1731739637437,-351.1,9.589e-05,2]
[342333246,1731739637459,-323.69003981,9.589e-05,2]
[342333247,1731739637483,-237.43,9.628e-05,2]
[342333248,1731739637507,-865.26,9.781e-05,2]
[342333249,1731739637529,-4703.18,9.887e-05,2]
[342333250,1731739637553,-1513.864,9.899e-05,2]
[342333251,1731739637576,-525.36,9.899e-05,2]
[342333252,1731739637599,-150.0,9.899e-05,2]
[342333253,1731739637622,-858.3418,9.9e-05,2]
[342333254,1731739637644,-1000.0,9.9e-05,2]
[342333255,1731739637667,-8881.84238626,9.9e-05,2]
[342333256,1731739638166,-3078.76551374,9.9e-05,2]
[342333257,1731739638720,-592.096,9.9e-05,2]
[342333258,1731739638760,-1.03487277,9.999e-05,2]
[342333259,1731739640094,-617.40707089,9.999e-05,2]
[342333260,1731739640116,-500.0,9.999e-05,2]
[342333261,1731739640137,-500.0,9.999e-05,2]
[342333262,1731739640160,-500.0,9.999e-05,2]
[342333263,1731739640181,-399.23393078,9.999e-05,2]
[342333278,1731739831712,-1000.0,9.737e-05,2]
[342333279,1731739831722,-562.57,9.839e-05,2]
[342333280,1731739831732,-4626.05,9.899e-05,2]
[342333281,1731739831741,-300.0,9.899e-05,2]
[342333282,1731739831751,-3971.0911,9.9e-05,2]
[342333283,1731739831760,-150.31,9.98e-05,2]
[342333284,1731739831769,-200.0,9.98e-05,2]
[342333285,1731739831778,-150.0,9.998e-05,2]
[342333286,1731739831787,-500.0,9.999e-05,2]
[342333287,1731739831796,-438.94279654,9.999e-05,2]
[342333288,1731739831807,-61.05720346,9.999e-05,2]
[342333289,1731739831816,-312.43308252,9.999e-05,2]
[342333290,1731739831825,-578.89,9.999e-05,2]
[342333291,1731739831834,-178.51970057,9.999e-05,2]
[342333292,1731739831843,-242.55552379,9.999e-05,2]
[342333293,1731739831852,-500.0,9.999e-05,2]
[342333294,1731739831861,-416.96595718,9.999e-05,2]
[342333295,1731739831871,-500.0,9.999e-05,2]
[342333296,1731739831879,-510.36,9.999e-05,2]
[342333297,1731739831888,-1370.66,9.999e-05,2]
[342333298,1731739831908,-1370.66,9.999e-05,2]
[342333299,1731739831918,-1370.66,9.999e-05,2]
[342333300,1731739831927,-1370.66,9.999e-05,2]
[342333301,1731739831936,-430.53269379,9.999e-05,2]
[342333302,1731739831954,-940.12730621,9.999e-05,2]
[342333303,1731739831963,-1370.66,9.999e-05,2]
[342333304,1731739831972,-1370.66,9.999e-05,2]
[342333305,1731739831982,-1370.66,9.999e-05,2]
[342333306,1731739831992,-1370.66,9.999e-05,2]
[342333307,1731739832002,-1370.66,9.999e-05,2]
[342333308,1731739832011,-1370.66,9.999e-05,2]
[342333309,1731739832020,-1370.66,9.999e-05,2]
[342333310,1731739832030,-1370.66,9.999e-05,2]
[342333311,1731739832039,-1370.66,9.999e-05,2]
[342333312,1731739832048,-1370.66,9.999e-05,2]
[342333313,1731739832057,-1370.66,9.999e-05,2]
[342333314,1731739832066,-1370.66,9.999e-05,2]
[342333315,1731739832076,-1370.66,9.999e-05,2]
[342333316,1731739832085,-1370.66,9.999e-05,2]
[342333317,1731739832094,-1370.66,9.999e-05,2]
[342333318,1731739832103,-1370.66,9.999e-05,2]
[342333319,1731739832112,-1370.66,9.999e-05,2]
[342333320,1731739832121,-1370.66,9.999e-05,2]
[342333321,1731739832130,-1370.79405119,9.999e-05,2]
[342333322,1731739832139,-500.0,9.999e-05,2]
[342333323,1731739832151,-500.0,9.999e-05,2]
[342333324,1731739832160,-500.0,9.999e-05,2]
[342333325,1731739832169,-501.15893894,9.999e-05,2]
[342333326,1731739832178,-249.67587895,9.999e-05,2]
[342333327,1731739832187,-500.0,9.999e-05,2]
[342333328,1731739832196,-500.0,9.999e-05,2]
[342333329,1731739832205,-500.0,9.999e-05,2]
[342333330,1731739832215,-500.0,9.999e-05,2]
[342333331,1731739832224,-500.0,9.999e-05,2]
[342333332,1731739832233,-500.0,9.999e-05,2]
[342333333,1731739832243,-500.0,9.999e-05,2]
[342333334,1731739832252,-600.85812057,9.999e-05,2]
[342333335,1731739832261,-4919.67,9.999e-05,2]
[342333336,1731739832271,-4919.67,9.999e-05,2]
[342333337,1731739832280,-4919.67,9.999e-05,2]
[342333338,1731739832290,-4919.67,9.999e-05,2]
[342333339,1731739832299,-4919.67,9.999e-05,2]
[342333340,1731739832312,-4919.67,9.999e-05,2]
[342333341,1731739832320,-4919.67,9.999e-05,2]
[342333342,1731739832329,-1534.64119388,9.999e-05,2]
[342333343,1731739832345,-3385.02880612,9.999e-05,2]
[342333344,1731739832356,-4919.67,9.999e-05,2]
[342333345,1731739832365,-4919.67,9.999e-05,2]
[342333346,1731739832374,-4919.67,9.999e-05,2]
[342333347,1731739832384,-4919.67,9.999e-05,2]
[342333348,1731739832395,-4919.67,9.999e-05,2]